fUST/lending_fUST_20250210
["ID","MTS","AMOUNT","RATE_DAILY","PERIOD"]
[352591817,1739184642254,-500.0,0.00011095,2]
[352591818,1739184642263,-500.0,0.00011095,2]
[352591819,1739184642273,-500.0,0.00011095,2]
[352591820,1739184642282,-289.52397111,0.00011095,2]
[352591821,1739184642291,-500.0,0.00011095,2]
[352591822,1739184642300,-500.0,0.00011095,2]
[352591823,1739184642309,-583.35,0.00011095,2]
[352591824,1739184642318,-500.0,0.00011095,2]
[352591825,1739184642328,-500.0,0.00011095,2]
[352591826,1739184642337,-500.0,0.00011095,2]
[352591827,1739184642347,-500.0,0.00011095,2]
[352591828,1739184642356,-500.0,0.00011095,2]
[352591829,1739184642365,-500.0,0.00011095,2]
[352591830,1739184642375,-500.0,0.00011095,2]
[352591831,1739184642384,-500.0,0.00011095,2]
[352591832,1739184642393,-500.0,0.00011095,2]
[352591833,1739184642403,-500.0,0.00011095,2]
[352591834,1739184642412,-500.0,0.00011095,2]
[352591835,1739184642421,-500.0,0.00011095,2]
[352591836,1739184642430,-726.45,0.00011095,2]
[352591837,1739184642440,-542.0610012,0.00011095,2]
[352591838,1739184642449,-500.0,0.00011095,2]
[352591839,1739184642458,-500.0,0.00011095,2]
[352591840,1739184642467,-500.0,0.00011095,2]
[352591841,1739184642476,-500.0,0.00011095,2]
[352591842,1739184642485,-500.0,0.00011095,2]
[352591843,1739184642494,-500.0,0.00011095,2]
[352591844,1739184642503,-500.0,0.00011095,2]
[352591845,1739184642512,-500.0,0.00011095,2]
[352591846,1739184642521,-500.0,0.00011095,2]
[352591847,1739184642530,-500.0,0.00011095,2]
[352591848,1739184642539,-7025.82,0.00011095,2]
[352591849,1739184642548,-500.0,0.00011095,2]
[352591850,1739184642557,-500.0,0.00011095,2]
[352591851,1739184642567,-500.0,0.00011095,2]
[352591852,1739184642575,-751.32,0.00011095,2]
[352591853,1739184642585,-500.0,0.00011095,2]
[352591854,1739184642594,-500.0,0.00011095,2]
[352591855,1739184642603,-1185.47,0.00011095,2]
[352591856,1739184642612,-500.0,0.00011095,2]
[352591857,1739184642621,-2829.52,0.00011095,2]
[352591858,1739184642630,-500.0,0.00011095,2]
[352591859,1739184642639,-500.0,0.00011095,2]
[352591860,1739184642648,-615.86,0.00011095,2]
[352591861,1739184642657,-500.0,0.00011095,2]
[352591862,1739184642666,-500.0,0.00011095,2]
[352591863,1739184642675,-1553.46,0.00011095,2]
[352591864,1739184642685,-949.6,0.00011095,2]
[352591865,1739184642694,-1053.69,0.00011095,2]
[352591866,1739184642704,-500.0,0.00011095,2]
[352591867,1739184642713,-720.36,0.00011095,2]
[352591868,1739184642722,-500.0,0.00011095,2]
[352591869,1739184642731,-510.9322322,0.00011095,2]
[352591870,1739184642740,-518.47,0.00011095,2]
[352591871,1739184642749,-7594.31,0.00011095,2]
[352591872,1739184642758,-1522.12,0.00011095,2]
[352591873,1739184642767,-500.0,0.00011095,2]
[352591874,1739184642777,-500.0,0.00011095,2]
[352591875,1739184642786,-500.0,0.00011095,2]
[352591876,1739184642796,-3200.14,0.00011095,2]
[352591877,1739184642806,-500.0,0.00011095,2]
[352591878,1739184642815,-500.0,0.00011095,2]
[352591879,1739184642824,-514.01,0.00011095,2]
[352591880,1739184642833,-507.74716417,0.00011095,2]
[352591881,1739184642843,-500.0,0.00011095,2]
[352591882,1739184642852,-586.2,0.00011095,2]
[352591883,1739184642862,-500.0,0.00011095,2]
[352591884,1739184642871,-500.0,0.00011095,2]
[352591885,1739184642880,-500.0,0.00011095,2]
[352591886,1739184642890,-500.0,0.00011095,2]
[352591887,1739184642900,-17335.31,0.00011095,2]
[352591888,1739184642909,-500.0,0.00011095,2]
[352591889,1739184642918,-500.0,0.00011095,2]
[352591890,1739184642928,-500.0,0.00011095,2]
[352591891,1739184642937,-841.1,0.00011095,2]
[352591892,1739184642951,-566.1,0.00011095,2]
[352591893,1739184642961,-500.0,0.00011095,2]
[352591895,1739184642971,-935.03,0.00011095,2]
[352591897,1739184642980,-511.84,0.00011095,2]
[352591898,1739184642990,-1576.8,0.00011095,2]
[352591899,1739184642999,-500.0,0.00011095,2]
[352591900,1739184643009,-500.0,0.00011095,2]
[352591901,1739184643020,-569.11,0.00011095,2]
[352591906,1739184643125,-1562.67,0.00011095,2]
[352591907,1739184643135,-859.56,0.00011095,2]
[352591908,1739184643145,-500.0,0.00011095,2]
[352591909,1739184643155,-500.0,0.00011095,2]
[352591911,1739184643164,-683.35,0.00011095,2]
[352591913,1739184643173,-500.0,0.00011095,2]
[352591914,1739184643183,-500.0,0.00011095,2]
[352591915,1739184643192,-717.77,0.00011095,2]
[352591916,1739184643201,-500.0,0.00011095,2]
[352591917,1739184643211,-500.0,0.00011095,2]
[352591918,1739184643220,-500.0,0.00011095,2]
[352591919,1739184643229,-500.0,0.00011095,2]
[352591920,1739184643238,-500.0,0.00011095,2]
[352591921,1739184643248,-500.0,0.00011095,2]
[352591922,1739184643257,-690.64,0.00011095,2]
[352591923,1739184643268,-500.0,0.00011095,2]
[352591924,1739184643277,-470.99303887,0.00011095,2]
[352591925,1739184643286,-500.0,0.00011095,2]
[352591926,1739184643296,-577.85,0.00011095,2]
[352591927,1739184643305,-500.0,0.00011095,2]
[352591928,1739184643314,-500.0,0.00011095,2]
[352591929,1739184643324,-371.33958002,0.00011095,2]
[352591930,1739184643333,-929.02,0.00011095,2]
[352591931,1739184643342,-500.0,0.00011095,2]
[352591932,1739184643352,-500.0,0.00011095,2]
[352591933,1739184643361,-500.0,0.00011095,2]
[352591934,1739184643370,-500.0,0.00011095,2]
[352591935,1739184643379,-1341.29,0.00011095,2]
[352591936,1739184643388,-500.0,0.00011095,2]
[352591937,1739184643397,-1074.82,0.00011095,2]
[352591938,1739184643406,-500.0,0.00011095,2]
[352591939,1739184643415,-500.0,0.00011095,2]
[352591940,1739184643425,-500.0,0.00011095,2]
[352591941,1739184643434,-500.0,0.00011095,2]
[352591942,1739184643443,-2801.78,0.00011095,2]
[352591943,1739184643452,-500.0,0.00011095,2]
[352591944,1739184643461,-443.9192744,0.00011095,2]
[352591945,1739184643471,-500.0,0.00011095,2]
[352591946,1739184643481,-1015.98,0.00011095,2]
[352591947,1739184643490,-500.0,0.00011095,2]
[352591948,1739184643499,-500.0,0.00011095,2]
[352591949,1739184643508,-500.0,0.00011095,2]
[352591950,1739184643519,-500.0,0.00011095,2]
[352591951,1739184643528,-500.0,0.00011095,2]
[352591952,1739184643537,-2296.21,0.00011095,2]
[352591953,1739184643547,-500.0,0.00011095,2]
[352591954,1739184643556,-500.0,0.00011095,2]
[352591955,1739184643565,-500.0,0.00011095,2]
[352591956,1739184643574,-500.0,0.00011095,2]
[352591957,1739184643583,-500.0,0.00011095,2]
[352591958,1739184643592,-500.0,0.00011095,2]
[352591959,1739184643601,-500.0,0.00011095,2]
[352591960,1739184643610,-823.48,0.00011095,2]
[352591961,1739184643619,-500.0,0.00011095,2]
[352591962,1739184643627,-500.0,0.00011095,2]
[352591963,1739184643637,-209671.20888983,0.000111,2]
[352591964,1739184643646,-500.0,0.00011232,2]
[352591965,1739184643655,-500.0,0.00011232,2]
[352591966,1739184643664,-500.0,0.00011232,2]
[352591967,1739184643673,-500.0,0.00011232,2]
[352591968,1739184643682,-897.47,0.00011232,2]
[352591969,1739184643691,-230.98636797,0.00011232,2]
[352591970,1739184643701,-500.0,0.00011232,2]
[352591971,1739184643711,-500.0,0.00011232,2]
[352591972,1739184643720,-500.0,0.00011232,2]
[352591973,1739184643729,-557.1208298,0.00011232,2]
[352591974,1739184643738,-500.0,0.00011232,2]
[352591975,1739184643748,-500.0,0.00011232,2]
[352591976,1739184643757,-500.0,0.00011232,2]
[352591977,1739184643768,-500.0,0.00011232,2]
[352591978,1739184643777,-535.73,0.00011232,2]
[352591979,1739184643786,-500.0,0.00011232,2]
[352591980,1739184643796,-500.0,0.00011232,2]
[352591981,1739184643805,-500.0,0.00011232,2]
[352591982,1739184643814,-645.58,0.00011232,2]
[352591983,1739184643823,-500.0,0.00011232,2]
[352591984,1739184643832,-500.0,0.00011232,2]
[352591985,1739184643841,-500.0,0.00011232,2]
[352591986,1739184643851,-500.0,0.00011232,2]
[352591987,1739184643860,-500.0,0.00011232,2]
[352591988,1739184643870,-500.0,0.00011232,2]
[352591989,1739184643879,-500.0,0.00011232,2]
[352591990,1739184643888,-528.76,0.00011232,2]
[352591991,1739184643897,-500.0,0.00011232,2]
[352591992,1739184643906,-500.0,0.00011232,2]
[352591993,1739184643915,-500.0,0.00011232,2]
[352591994,1739184643925,-500.0,0.00011232,2]
[352591995,1739184643934,-500.0,0.00011232,2]
[352591996,1739184643948,-500.0,0.00011232,2]
[352591997,1739184643957,-500.0,0.00011232,2]
[352591998,1739184643966,-583.35,0.00011232,2]
[352591999,1739184643975,-500.0,0.00011232,2]
[352592000,1739184643985,-500.0,0.00011232,2]
[352592001,1739184643995,-500.0,0.00011232,2]
[352592002,1739184644004,-500.0,0.00011232,2]
[352592003,1739184644013,-500.0,0.00011232,2]
[352592004,1739184644022,-500.0,0.00011232,2]
[352592005,1739184644031,-500.0,0.00011232,2]
[352592006,1739184644040,-500.0,0.00011232,2]
[352592007,1739184644049,-726.45,0.00011232,2]
[352592008,1739184644060,-500.0,0.00011232,2]
[352592009,1739184644069,-500.0,0.00011232,2]
[352592010,1739184644078,-500.0,0.00011232,2]
[352592011,1739184644087,-500.0,0.00011232,2]
[352592012,1739184644096,-422.85046026,0.00011232,2]
[352592013,1739184644105,-500.0,0.00011232,2]
[352592014,1739184644116,-7025.82,0.00011232,2]
[352592015,1739184644125,-500.0,0.00011232,2]
[352592016,1739184644135,-751.32,0.00011232,2]
[352592017,1739184644144,-500.0,0.00011232,2]
[352592018,1739184644153,-537.15448279,0.00011232,2]
[352592019,1739184644162,-1185.47,0.00011232,2]
[352592020,1739184644171,-2829.52,0.00011232,2]
[352592021,1739184644180,-500.0,0.00011232,2]
[352592022,1739184644189,-500.0,0.00011232,2]
[352592023,1739184644198,-615.86,0.00011232,2]
[352592024,1739184644207,-500.0,0.00011232,2]
[352592025,1739184644215,-500.0,0.00011232,2]
[352592026,1739184644224,-1553.46,0.00011232,2]
[352592027,1739184644233,-949.6,0.00011232,2]
[352592028,1739184644242,-1053.69,0.00011232,2]
[352592029,1739184644251,-720.36,0.00011232,2]
[352592030,1739184644260,-366.51649197,0.00011232,2]
[352592031,1739184644271,-518.47,0.00011232,2]
[352592032,1739184644280,-7594.31,0.00011232,2]
[352592033,1739184644290,-1522.12,0.00011232,2]
[352592034,1739184644299,-245.52649207,0.00011232,2]
[352592035,1739184644308,-500.0,0.00011232,2]
[352592036,1739184644318,-3200.14,0.00011232,2]
[352592037,1739184644327,-500.0,0.00011232,2]
[352592038,1739184644336,-500.0,0.00011232,2]
[352592039,1739184644345,-514.01,0.00011232,2]
[352592040,1739184644354,-586.2,0.00011232,2]
[352592041,1739184644363,-500.0,0.00011232,2]
[352592042,1739184644372,-500.0,0.00011232,2]
[352592043,1739184644381,-500.0,0.00011232,2]
[352592044,1739184644390,-500.0,0.00011232,2]
[352592045,1739184644399,-17335.31,0.00011232,2]
[352592046,1739184644408,-394.04247695,0.00011232,2]
[352592047,1739184644417,-500.0,0.00011232,2]
[352592048,1739184644426,-500.0,0.00011232,2]
[352592049,1739184644436,-841.1,0.00011232,2]
[352592050,1739184644445,-566.1,0.00011232,2]
[352592051,1739184644454,-182.41134264,0.00011232,2]
[352592052,1739184644463,-935.03,0.00011232,2]
[352592053,1739184644473,-511.84,0.00011232,2]
[352592054,1739184644482,-1576.8,0.00011232,2]
[352592055,1739184644491,-500.0,0.00011232,2]
[352592056,1739184644500,-569.11,0.00011232,2]
[352592057,1739184644509,-1562.67,0.00011232,2]
[352592058,1739184644519,-859.56,0.00011232,2]
[352592059,1739184644528,-500.0,0.00011232,2]
[352592060,1739184644537,-500.0,0.00011232,2]
[352592061,1739184644546,-683.35,0.00011232,2]
[352592062,1739184644555,-500.0,0.00011232,2]
[352592063,1739184644564,-500.0,0.00011232,2]
[352592064,1739184644573,-717.77,0.00011232,2]
[352592065,1739184644582,-500.0,0.00011232,2]
[352592066,1739184644591,-500.0,0.00011232,2]
[352592067,1739184644600,-500.0,0.00011232,2]
[352592068,1739184644609,-500.0,0.00011232,2]
[352592069,1739184644619,-690.64,0.00011232,2]
[352592070,1739184644627,-609.62149974,0.00011232,2]
[352592071,1739184644636,-577.85,0.00011232,2]
[352592072,1739184644646,-500.0,0.00011232,2]
[352592073,1739184644655,-500.0,0.00011232,2]
[352592074,1739184644664,-929.02,0.00011232,2]
[352592075,1739184644673,-500.0,0.00011232,2]
[352592076,1739184644682,-500.0,0.00011232,2]
[352592077,1739184644691,-1341.29,0.00011232,2]
[352592078,1739184644701,-1074.82,0.00011232,2]
[352592079,1739184644710,-500.0,0.00011232,2]
[352592080,1739184644719,-500.0,0.00011232,2]
[352592081,1739184644728,-500.0,0.00011232,2]
[352592082,1739184644737,-500.0,0.00011232,2]
[352592083,1739184644745,-2801.78,0.00011232,2]
[352592084,1739184644754,-500.0,0.00011232,2]
[352592085,1739184644763,-500.0,0.00011232,2]
[352592086,1739184644772,-1015.98,0.00011232,2]
[352592087,1739184644781,-500.0,0.00011232,2]
[352592088,1739184644790,-500.0,0.00011232,2]
[352592089,1739184644799,-500.0,0.00011232,2]
[352592090,1739184644808,-500.0,0.00011232,2]
[352592091,1739184644817,-504.08821107,0.00011232,2]
[352592092,1739184644826,-2296.21,0.00011232,2]
[352592093,1739184644835,-500.0,0.00011232,2]
[352592094,1739184644844,-500.0,0.00011232,2]
[352592095,1739184644853,-500.0,0.00011232,2]
[352592096,1739184644862,-500.0,0.00011232,2]
[352592097,1739184644871,-500.0,0.00011232,2]
[352592098,1739184644881,-346.68576636,0.00011232,2]
[352592099,1739184644890,-500.0,0.00011232,2]
[352592100,1739184644899,-823.48,0.00011232,2]
[352592101,1739184644909,-500.0,0.00011232,2]
[352592102,1739184644919,-500.0,0.00011232,2]
[352592103,1739184644928,-240.91700769,0.00011269,2]
[352592104,1739184644939,-784.52277104,0.00011347,2]
[352592105,1739184644952,-500.0,0.00011369,2]
[352592106,1739184644962,-500.0,0.00011369,2]
[352592107,1739184644971,-500.0,0.00011369,2]
[352592108,1739184644980,-897.47,0.00011369,2]
[352592109,1739184644991,-500.0,0.00011369,2]
[352592110,1739184645002,-500.0,0.00011369,2]
[352592111,1739184645012,-500.0,0.00011369,2]
[352592112,1739184645025,-500.0,0.00011369,2]
[352592113,1739184645035,-500.0,0.00011369,2]
[352592114,1739184645045,-500.0,0.00011369,2]
[352592115,1739184645054,-500.0,0.00011369,2]
[352592116,1739184645065,-535.73,0.00011369,2]
[352592117,1739184645075,-500.0,0.00011369,2]
[352592118,1739184645084,-500.0,0.00011369,2]
[352592119,1739184645093,-500.0,0.00011369,2]
[352592120,1739184645103,-645.58,0.00011369,2]
[352592121,1739184645113,-500.0,0.00011369,2]
[352592122,1739184645123,-500.0,0.00011369,2]
[352592123,1739184645133,-500.0,0.00011369,2]
[352592124,1739184645142,-500.0,0.00011369,2]
[352592125,1739184645151,-500.0,0.00011369,2]
[352592126,1739184645160,-500.0,0.00011369,2]
[352592127,1739184645170,-528.76,0.00011369,2]
[352592128,1739184645179,-500.0,0.00011369,2]
[352592129,1739184645190,-500.0,0.00011369,2]
[352592130,1739184645199,-500.0,0.00011369,2]
[352592131,1739184645208,-500.0,0.00011369,2]
[352592132,1739184645218,-583.35,0.00011369,2]
[352592133,1739184645311,-500.0,0.00011369,2]
[352592134,1739184645321,-500.0,0.00011369,2]
[352592135,1739184645330,-500.0,0.00011369,2]
[352592136,1739184645339,-500.0,0.00011369,2]
[352592137,1739184645349,-500.0,0.00011369,2]
[352592138,1739184645359,-624.31537494,0.00011369,2]
[352592139,1739184645368,-726.45,0.00011369,2]
[352592140,1739184645377,-500.0,0.00011369,2]
[352592141,1739184645386,-500.0,0.00011369,2]
[352592142,1739184645395,-500.0,0.00011369,2]
[352592143,1739184645404,-567.08,0.00011369,2]
[352592144,1739184645413,-7025.82,0.00011369,2]
[352592145,1739184645422,-500.0,0.00011369,2]
[352592146,1739184645431,-751.32,0.00011369,2]
[352592147,1739184645439,-500.0,0.00011369,2]
[352592148,1739184645448,-1185.47,0.00011369,2]
[352592149,1739184645459,-2829.52,0.00011369,2]
[352592150,1739184645468,-500.0,0.00011369,2]
[352592151,1739184645477,-500.0,0.00011369,2]
[352592152,1739184645486,-615.86,0.00011369,2]
[352592153,1739184645495,-500.0,0.00011369,2]
[352592154,1739184645504,-500.0,0.00011369,2]
[352592155,1739184645513,-1553.46,0.00011369,2]
[352592156,1739184645522,-949.6,0.00011369,2]
[352592157,1739184645530,-1053.69,0.00011369,2]
[352592158,1739184645539,-720.36,0.00011369,2]
[352592159,1739184645548,-518.47,0.00011369,2]
[352592160,1739184645557,-7594.31,0.00011369,2]
[352592161,1739184645566,-1522.12,0.00011369,2]
[352592162,1739184645575,-500.0,0.00011369,2]
[352592163,1739184645584,-3200.14,0.00011369,2]
[352592164,1739184645592,-500.0,0.00011369,2]
[352592165,1739184645601,-500.0,0.00011369,2]
[352592166,1739184645612,-514.01,0.00011369,2]
[352592167,1739184645621,-586.2,0.00011369,2]
[352592168,1739184645630,-500.0,0.00011369,2]
[352592169,1739184645639,-500.0,0.00011369,2]
[352592170,1739184645648,-500.0,0.00011369,2]
[352592171,1739184645657,-500.0,0.00011369,2]
[352592172,1739184645666,-17335.31,0.00011369,2]
[352592173,1739184645676,-500.0,0.00011369,2]
[352592174,1739184645685,-500.0,0.00011369,2]
[352592175,1739184645695,-841.1,0.00011369,2]
[352592176,1739184645705,-566.1,0.00011369,2]
[352592177,1739184645714,-935.03,0.00011369,2]
[352592178,1739184645724,-511.84,0.00011369,2]
[352592179,1739184645733,-1576.8,0.00011369,2]
[352592180,1739184645744,-391.02659562,0.00011369,2]
[352592181,1739184645753,-569.11,0.00011369,2]
[352592182,1739184645763,-1562.67,0.00011369,2]
[352592183,1739184645773,-859.56,0.00011369,2]
[352592184,1739184645782,-500.0,0.00011369,2]
[352592185,1739184645791,-500.0,0.00011369,2]
[352592186,1739184645801,-683.35,0.00011369,2]
[352592187,1739184645810,-500.0,0.00011369,2]
[352592188,1739184645820,-500.0,0.00011369,2]
[352592189,1739184645829,-717.77,0.00011369,2]
[352592190,1739184645839,-500.0,0.00011369,2]
[352592191,1739184645848,-500.0,0.00011369,2]
[352592192,1739184645858,-500.0,0.00011369,2]
[352592193,1739184645868,-690.64,0.00011369,2]
[352592194,1739184645877,-577.85,0.00011369,2]
[352592195,1739184645887,-500.0,0.00011369,2]
[352592196,1739184645896,-929.02,0.00011369,2]
[352592197,1739184645906,-500.0,0.00011369,2]
[352592198,1739184645916,-500.0,0.00011369,2]
[352592199,1739184645925,-1341.29,0.00011369,2]
[352592200,1739184645935,-1074.82,0.00011369,2]
[352592201,1739184645948,-503.0558322,0.00011369,2]
[352592202,1739184645958,-500.0,0.00011369,2]
[352592203,1739184645968,-500.0,0.00011369,2]
[352592204,1739184645977,-500.0,0.00011369,2]
[352592205,1739184645988,-2801.78,0.00011369,2]
[352592206,1739184645998,-500.0,0.00011369,2]
[352592207,1739184646007,-500.0,0.00011369,2]
[352592208,1739184646016,-1015.98,0.00011369,2]
[352592209,1739184646026,-500.0,0.00011369,2]
[352592210,1739184646035,-500.0,0.00011369,2]
[352592211,1739184646044,-500.0,0.00011369,2]
[352592212,1739184646054,-500.0,0.00011369,2]
[352592213,1739184646063,-2296.21,0.00011369,2]
[352592215,1739184646072,-500.0,0.00011369,2]
[352592216,1739184646082,-500.0,0.00011369,2]
[352592217,1739184646092,-500.0,0.00011369,2]
[352592219,1739184646101,-500.0,0.00011369,2]
[352592221,1739184646111,-500.0,0.00011369,2]
[352592222,1739184646120,-500.0,0.00011369,2]
[352592223,1739184646130,-823.48,0.00011369,2]
[352592224,1739184646139,-500.0,0.00011369,2]
[352592225,1739184646148,-500.0,0.00011506,2]
[352592226,1739184646157,-500.0,0.00011506,2]
[352592227,1739184646167,-500.0,0.00011506,2]
[352592228,1739184646176,-897.47,0.00011506,2]
[352592229,1739184646185,-500.0,0.00011506,2]
[352592230,1739184646196,-500.0,0.00011506,2]
[352592231,1739184646205,-477.62032581,0.00011506,2]
[352592232,1739184646215,-596.26,0.00011506,2]
[352592234,1739184646224,-500.0,0.00011506,2]
[352592236,1739184646234,-500.0,0.00011506,2]
[352592238,1739184646243,-500.0,0.00011506,2]
[352592240,1739184646252,-535.73,0.00011506,2]
[352592241,1739184646261,-500.0,0.00011506,2]
[352592242,1739184646271,-500.0,0.00011506,2]
[352592243,1739184646280,-645.58,0.00011506,2]
[352592244,1739184646289,-500.0,0.00011506,2]
[352592245,1739184646299,-500.0,0.00011506,2]
[352592246,1739184646308,-500.0,0.00011506,2]
[352592247,1739184646317,-500.0,0.00011506,2]
[352592248,1739184646326,-500.0,0.00011506,2]
[352592249,1739184646336,-500.0,0.00011506,2]
[352592250,1739184646345,-528.76,0.00011506,2]
[352592251,1739184646354,-500.0,0.00011506,2]
[352592252,1739184646363,-500.0,0.00011506,2]
[352592253,1739184646373,-500.0,0.00011506,2]
[352592254,1739184646383,-583.35,0.00011506,2]
[352592255,1739184646392,-500.0,0.00011506,2]
[352592256,1739184646401,-500.0,0.00011506,2]
[352592257,1739184646410,-500.0,0.00011506,2]
[352592258,1739184646420,-726.45,0.00011506,2]
[352592259,1739184646430,-500.0,0.00011506,2]
[352592260,1739184646439,-500.0,0.00011506,2]
[352592261,1739184646448,-7025.82,0.00011506,2]
[352592262,1739184646458,-751.32,0.00011506,2]
[352592263,1739184646467,-1185.47,0.00011506,2]
[352592264,1739184646477,-2829.52,0.00011506,2]
[352592265,1739184646486,-500.0,0.00011506,2]
[352592266,1739184646495,-500.0,0.00011506,2]
[352592267,1739184646505,-615.86,0.00011506,2]
[352592268,1739184646515,-500.0,0.00011506,2]
[352592269,1739184646524,-500.0,0.00011506,2]
[352592270,1739184646533,-1553.46,0.00011506,2]
[352592272,1739184646543,-949.6,0.00011506,2]
[352592274,1739184646552,-1053.69,0.00011506,2]
[352592275,1739184646561,-720.36,0.00011506,2]
[352592276,1739184646570,-518.47,0.00011506,2]
[352592277,1739184646580,-7594.31,0.00011506,2]
[352592278,1739184646590,-1522.12,0.00011506,2]
[352592279,1739184646599,-3200.14,0.00011506,2]
[352592280,1739184646609,-500.0,0.00011506,2]
[352592281,1739184646618,-514.01,0.00011506,2]
[352592282,1739184646627,-586.2,0.00011506,2]
[352592283,1739184646637,-500.0,0.00011506,2]
[352592284,1739184646646,-500.0,0.00011506,2]
[352592285,1739184646656,-500.0,0.00011506,2]
[352592286,1739184646666,-17335.31,0.00011506,2]
[352592287,1739184646675,-500.0,0.00011506,2]
[352592288,1739184646685,-841.1,0.00011506,2]
[352592289,1739184646694,-566.1,0.00011506,2]
[352592290,1739184646703,-935.03,0.00011506,2]
[352592291,1739184646713,-511.84,0.00011506,2]
[352592292,1739184646722,-1576.8,0.00011506,2]
[352592293,1739184646731,-569.11,0.00011506,2]
[352592294,1739184646740,-1562.67,0.00011506,2]
[352592295,1739184646751,-859.56,0.00011506,2]
[352592296,1739184646761,-500.0,0.00011506,2]
[352592297,1739184646771,-683.35,0.00011506,2]
[352592298,1739184646780,-500.0,0.00011506,2]
[352592299,1739184646789,-500.0,0.00011506,2]
[352592300,1739184646799,-717.77,0.00011506,2]
[352592301,1739184646808,-500.0,0.00011506,2]
[352592302,1739184646817,-500.0,0.00011506,2]
[352592303,1739184646826,-500.0,0.00011506,2]
[352592304,1739184646835,-690.64,0.00011506,2]
[352592305,1739184646845,-577.85,0.00011506,2]
[352592306,1739184646854,-500.0,0.00011506,2]
[352592307,1739184646863,-929.02,0.00011506,2]
[352592308,1739184646872,-500.0,0.00011506,2]
[352592309,1739184646881,-500.0,0.00011506,2]
[352592310,1739184646890,-1341.29,0.00011506,2]
[352592311,1739184646899,-1074.82,0.00011506,2]
[352592312,1739184646909,-500.0,0.00011506,2]
[352592313,1739184646919,-500.0,0.00011506,2]
[352592314,1739184646928,-500.0,0.00011506,2]
[352592315,1739184646938,-2801.78,0.00011506,2]
[352592316,1739184646950,-500.0,0.00011506,2]
[352592317,1739184646960,-500.0,0.00011506,2]
[352592318,1739184646969,-1015.98,0.00011506,2]
[352592319,1739184646978,-500.0,0.00011506,2]
[352592320,1739184646988,-500.0,0.00011506,2]
[352592321,1739184646997,-2296.21,0.00011506,2]
[352592322,1739184647006,-500.0,0.00011506,2]
[352592323,1739184647016,-500.0,0.00011506,2]
[352592324,1739184647027,-544.55776115,0.00011506,2]
[352592325,1739184647037,-500.0,0.00011506,2]
[352592326,1739184647046,-823.48,0.00011506,2]
[352592327,1739184647054,-500.0,0.00011506,2]
[352592328,1739184647063,-445.88502091,0.00011535,2]
[352592329,1739184647073,-240.91700769,0.00011543,2]
[352592330,1739184647082,-151.0,0.000116,2]
[352592331,1739184647091,-500.0,0.00011621,2]
[352592332,1739184647100,-500.0,0.00011621,2]
[352592333,1739184647110,-1000.0,0.00011621,2]